fUSD/lending_fUSD_20240716
["ID","MTS","AMOUNT","RATE_DAILY","PERIOD"]
[332254215,1721095832551,-500.0,0.00012654,2]
[332254216,1721095832560,-500.0,0.00012662,2]
[332254217,1721095832570,-499.99,0.00012662,2]
[332254218,1721095832579,-352.39,0.00012738,2]
[332254219,1721095832588,-250.0,0.00012756,2]
[332254220,1721095832598,-235.43,0.00012794,2]
[332254221,1721095832607,-863.12668978,0.00012813,2]
[332254222,1721095832618,-735.49132628,0.00012813,2]
[332254227,1721095838151,-490.52994438,0.00012813,2]
[332254229,1721095838336,-480.30936469,0.00012813,2]
[332254230,1721095838400,-610.09299413,0.00012813,2]
[332254231,1721095838412,-392.52338123,0.00012813,2]
[332254232,1721095838423,-518.20629951,0.00012813,2]
[332254233,1721095838432,-1388.2,0.00013054,2]
[332254234,1721095838444,-789.77336223,0.00013128,2]
[332254235,1721095838453,-243.39,0.00013383,2]
[332254236,1721095838463,-789.77336223,0.00013472,2]
[332254237,1721095838472,-627.46922124,0.00013472,2]
[332254238,1721095838482,-553.07396753,0.00013516,2]
[332254239,1721095838492,-616.38478944,0.00013543,2]
[332254240,1721095838501,-5965.22837082,0.00013661,2]
[332254241,1721095838513,-2336.27453804,0.00013661,2]
[332254242,1721095838524,-1698.49709114,0.00013661,2]
[332254243,1721095838534,-306.41261545,0.00013736,2]
[332254244,1721095838544,-420.0,0.00013833,2]
[332254245,1721095838554,-15.65917782,0.00013889,2]
[332254246,1721095838565,-140.34082218,0.00013889,2]
[332254247,1721095838575,-1000.0,0.00014084,2]
[332254248,1721095838584,-5184.0,0.00014237,2]
[332254249,1721095838593,-167.50917782,0.00014237,2]
[332254250,1721095838604,-2691.51302511,0.00014237,2]
[332254251,1721095838616,-1872.6568585,0.00014237,2]
[332254399,1721095840197,-1440.56132949,0.00013661,2]
[332254402,1721095840210,-522.809,0.00013661,2]
[332254404,1721095840221,-5675.0,0.00013661,2]
[332254426,1721095840352,150.0,0.00012495,2]
[332254432,1721095840406,-278.90148228,0.00012495,2]
[332254435,1721095840418,-71.09851772,0.00012495,2]
[332254437,1721095840427,-1872.22891392,0.00013661,2]
[332254439,1721095840439,-1096.50393857,0.00014237,2]
[332254441,1721095840448,-754.78943439,0.00014237,2]
[332254443,1721095840459,-1408.02620954,0.00014237,2]
[332254445,1721095840470,-36195.86435607,0.00014237,2]
[332254447,1721095840479,-1201.329,0.00014237,2]
[332254449,1721095840489,-1669.438,0.00014237,2]
[332254451,1721095840499,-1072.0,0.00014237,2]
[332254453,1721095840508,-627.51,0.00014325,2]
[332254455,1721095840518,-150.0,0.00014361,2]
[332254457,1721095840527,-364.276,0.00014376,2]
[332254459,1721095840537,-1668.137,0.00014376,2]
[332254461,1721095840546,-1826.118,0.00014376,2]
[332254463,1721095840555,-1259.042,0.00014376,2]
[332254465,1721095840565,-488.389,0.00014376,2]
[332254467,1721095840574,-812.393,0.00014376,2]
[332254469,1721095840584,-622.343,0.00014376,2]
[332254471,1721095840593,-452.978,0.00014376,2]
[332254473,1721095840602,-224.45,0.00014376,2]
[332254475,1721095840611,-2387.023,0.00014376,2]
[332254477,1721095840620,-1373.876,0.00014376,2]
[332254479,1721095840630,-151.348,0.00014376,2]
[332254481,1721095840639,-3289.051,0.00014376,2]
[332254482,1721095840648,-1998.341,0.00014376,2]
[332254484,1721095840657,-550.67,0.00014376,2]
[332254486,1721095840667,-532.88975415,0.00014499,2]
[332254488,1721095840676,-589.56103,0.00014521,2]
[332254491,1721095840687,-946.36224616,0.00014849,2]
[332254492,1721095840697,-320.32,0.0001488,3]
[332254494,1721095840706,-28600.0133,0.0001489,2]
[332254496,1721095840715,-3308.9555,0.0001489,2]
[332254498,1721095840724,-6195.3898,0.0001489,2]
[332254500,1721095840734,-645.2246,0.0001489,2]
[332254503,1721095840744,-540.4381,0.0001489,2]
[332254504,1721095840754,-209.1831,0.0001489,2]
[332254506,1721095840763,-527.46436361,0.00014899,2]
[332254509,1721095840773,-2000.0,0.000149,2]
[332254511,1721095840782,-331.65808608,0.000149,2]
[332254513,1721095840791,-520.56473031,0.00014966,2]
[332254514,1721095840801,-2979.22586392,0.0001498,3]
[332254516,1721095840812,-372.40323299,0.00014984,3]
[332254518,1721095840821,-500.0,0.00014989,2]
[332254520,1721095840830,-401.09255975,0.00014989,2]
[332254522,1721095840839,-508.87396284,0.00014989,2]
[332254524,1721095840848,-500.0,0.00014989,2]
[332254526,1721095840857,-500.0,0.00014989,2]
[332254528,1721095840872,-258.76075272,0.00014989,2]
[332254530,1721095840881,-417.56372644,0.00014989,2]
[332254533,1721095840890,-151.55040386,0.00014989,2]
[332254535,1721095840899,-188.59065034,0.00014989,2]
[332254536,1721095840910,-568.6112914,0.00014989,2]
[332254538,1721095840919,-382.8605493,0.00014989,2]
[332254540,1721095840928,-164.58457412,0.00014989,2]
[332254542,1721095840937,-504.3401895,0.00014989,2]
[332254544,1721095840949,-500.0,0.00014989,2]
[332254546,1721095840958,-500.0,0.00014989,2]
[332254548,1721095840967,-500.0,0.00014989,2]
[332254550,1721095840976,-500.0,0.00014989,2]
[332254552,1721095840985,-372.40323299,0.0001499,3]
[332254554,1721095840995,-330130.902466,0.0001499,3]
[332254556,1721095841004,-192.15134602,0.0001499,2]
[332254558,1721095841014,-21675.86157121,0.00015,2]
[332254560,1721095841023,-376268.60938609,0.00015,2]
[332254562,1721095841035,-324225.37131012,0.00015,2]
[332254564,1721095841046,-568.13080662,0.00015,2]
[332254566,1721095841057,-34604.74279656,0.00015,2]
[332254569,1721095841068,-369.34747798,0.00015,2]
[332254571,1721095841079,-130373.38553093,0.00015,2]
[332254573,1721095841095,-652.82532851,0.00015,2]
[332254576,1721095841106,-18957.30321431,0.00015,2]
[332254578,1721095841117,-14901.011465,0.00015,2]
[332254580,1721095841130,-7950.54102057,0.00015,2]
[332254582,1721095841141,-5807.43776704,0.00015,2]
[332254698,1721095843235,-4920.52197057,0.00015,2]
[332254702,1721095843247,-1120.0670913,0.00015,2]
[332254705,1721095843260,-337.1133812,0.00015,2]
[332254720,1721095843469,-6978.5,0.00015,2]
[332254721,1721095843481,-570.0,0.00015,2]
[332254722,1721095843493,-626.63610184,0.00015,2]
[332254723,1721095843705,-4541.71748,0.00015,2]
[332254724,1721095843717,-1146.876015,0.00015,2]
[332254732,1721095846111,-156.64,0.00014868,2]
[332254733,1721095846121,-15294.69542455,0.00015,2]
[332254734,1721095846133,-8255.88641191,0.00015,2]
[332254735,1721095846307,-300.0,0.00015,2]
[332254736,1721095846319,-1232.34172291,0.00015,2]
[332254737,1721095846330,-74024.90584167,0.00015,2]
[332254738,1721095846341,-4815.94927174,0.00015,2]
[332254739,1721095846353,-3000.0,0.00015,2]
[332254740,1721095846364,-626.69679635,0.00015,2]
[332254741,1721095846375,-275.49654324,0.00015,2]
[332254742,1721095846386,-1023.445605,0.00015,2]
[332254743,1721095846547,-6968.4,0.00015,2]
[332254745,1721095846559,-649.265,0.00015,2]
[332254748,1721095846570,-489.5109991,0.00015,2]
[332254761,1721095886756,-150.0,0.00012486,2]
[332254762,1721095887101,-150.0,0.00012486,2]
[332254763,1721095887628,-150.0,0.00012486,2]
[332254764,1721095938519,-150.0,0.00012478,2]
[332254765,1721095939477,-150.0,0.00012478,2]
[332254766,1721095939992,-150.0,0.00012478,2]
[332254775,1721095981226,-150.0,0.00012469,2]
[332254776,1721095981915,-150.0,0.00012469,2]
[332254777,1721095982734,-200.0,0.00012469,2]
[332254778,1721096034889,-229.19015416,0.0001246,2]
[332254779,1721096035492,-150.0,0.0001246,2]
[332254781,1721096078797,-500.0,0.00012451,2]
[332254783,1721096103134,190.46567593,9.962e-05,2]
[332254784,1721096103162,59.75787407,9.962e-05,2]
[332254786,1721096123692,-309.53432407,0.00012442,2]
[332254787,1721096124181,-190.46567593,0.00012442,2]
[332254790,1721096166012,-439.84368876,0.00012434,2]
[332254791,1721096218255,-500.0,0.00012425,2]
[332254793,1721096261325,-500.0,0.00012416,2]
[332254794,1721096302736,-276.19953925,0.00012407,2]
[332254795,1721096303154,-223.80046075,0.00012407,2]
[332254796,1721096354753,-276.19953925,0.00012398,2]
[332254797,1721096355404,-223.80046075,0.00012398,2]
[332254798,1721096387808,-276.19953925,0.00012416,2]
[332254799,1721096398690,-500.0,0.0001239,2]
[332254800,1721096439723,-306.44677199,0.00012381,2]
[332254801,1721096497331,-627.51,0.00011718,2]
[332254853,1721097032295,-55.95,0.00011718,2]
[332254855,1721097032305,-219.3594893,0.00012319,2]
[332254858,1721097032317,-280.6405107,0.00012319,2]
[332254859,1721097032327,-500.0,0.00012328,2]
[332254861,1721097032338,-215.23494806,0.00012337,2]
[332254864,1721097032427,-284.76505194,0.00012337,2]
[332254865,1721097032437,-51.45494806,0.00012346,2]
[332254873,1721097039049,-435.09366157,0.00012346,2]
[332254875,1721097039061,-13.45139037,0.00012346,2]
[332254877,1721097039070,-500.0,0.00012354,2]
[332254878,1721097039079,-77.74291448,0.00012363,2]
[332254883,1721097039403,-272.49,0.00012363,2]
[332254884,1721097039414,-149.76708552,0.00012363,2]
[332254885,1721097039424,-500.0,0.00012372,2]
[332254886,1721097039434,-193.55322801,0.00012381,2]
[332254887,1721097039443,-60.15631124,0.00012434,2]
[332254888,1721097039453,-120.80984584,0.0001246,2]
[332254889,1721097039463,-643.89,0.0001246,2]
[332254890,1721097039472,-150.99,0.0001246,2]
[332254891,1721097039482,-50.0,0.00012478,2]
[332254892,1721097039491,-10.62426657,0.00012486,2]
[332254893,1721097039503,-39.37573343,0.00012486,2]
[332254894,1721097039512,-680.32411879,0.00013128,2]
[332254895,1721097039534,-109.44924344,0.00013128,2]
[332254896,1721097039543,-250.0,0.00013497,2]
[332254897,1721097039553,-946.36224616,0.00013516,2]
[332254898,1721097039563,-332.27278645,0.00013543,2]
[332254900,1721097039573,-155.41811934,0.00013543,2]
[332254901,1721097039582,-547.27126759,0.00013543,2]
[332254903,1721097039592,-611.97504503,0.00013543,2]
[332254905,1721097039602,-907.8865706,0.00013563,2]
[332254907,1721097039613,-174.9034294,0.00013563,2]
[332254909,1721097039623,-994.06521827,0.0001357,2]
[332254911,1721097039633,-994.06521827,0.0001357,2]
[332254913,1721097039642,-499.99,0.00013661,2]
[332254915,1721097039652,-10000.0,0.00013661,2]
[332254917,1721097039663,-274.68,0.0001367,2]
[332254919,1721097039672,-156.60089237,0.00013759,2]
[332254920,1721097039682,-155.27707975,0.00013759,2]
[332254923,1721097039691,-599.45308107,0.00013759,2]
[332254924,1721097039700,-292.96482222,0.00013849,2]
[332254926,1721097039710,-683.46,0.00013982,2]
[332254928,1721097039719,-3000.0,0.00014,2]
[332254930,1721097039728,-500.0,0.00014,2]
[332254931,1721097039738,-639.53,0.00014,2]
[332254932,1721097039747,-224.29,0.00014,2]
[332254933,1721097039756,-1000.0,0.00014029,2]
[332254934,1721097039766,-616.38478944,0.00014203,2]
[332254935,1721097039776,-530.604927,0.00014247,2]
[332254936,1721097039785,-3293.5165576,0.00014372,2]
[332254937,1721097039795,-240.291,0.00014451,2]
[332254938,1721097039804,-419.72,0.00014462,2]
[332254939,1721097039814,-620.0,0.00014476,2]
[332254940,1721097039823,-449.0,0.00014476,2]
[332254941,1721097039832,-2379.0,0.00014476,2]
[332254942,1721097039842,-1253.0,0.00014476,2]
[332254943,1721097039851,-150.0,0.00014476,2]
[332254944,1721097039860,-548.791,0.00014476,2]
[332254945,1721097040059,-1991.0,0.00014476,2]
[332254946,1721097040069,-3278.0,0.00014476,2]
[332254947,1721097040078,-776.488,0.00014476,2]
[332254948,1721097040087,-1830.0,0.00014476,2]
[332254949,1721097040097,-5184.0,0.00014476,2]
[332254950,1721097040107,-1252.0,0.00014476,2]
[332254951,1721097040117,-1661.0,0.00014476,2]
[332254952,1721097040127,-5525.0,0.00014701,2]
[332254953,1721097040137,-150.0,0.00014716,2]
[332254954,1721097040146,-150.0,0.00014717,2]
[332254955,1721097040156,-150.20536216,0.00014722,2]
[332254956,1721097040165,-1500.0,0.00014725,2]
[332254957,1721097040175,-300.0,0.00014726,2]
[332254958,1721097040184,-1500.0,0.00014729,2]
[332254959,1721097040194,-150.0,0.0001473,2]
[332254960,1721097040203,-150.0,0.00014733,2]
[332254961,1721097040212,-150.0,0.00014734,2]
[332254962,1721097040222,-150.0,0.00014735,2]
[332254963,1721097040231,-1500.0,0.00014737,2]
[332254964,1721097040240,-150.0,0.00014738,2]
[332254965,1721097040250,-150.0,0.00014738,2]
[332254966,1721097040260,-1500.0,0.00014739,2]
[332254967,1721097040271,-150.0,0.00014739,2]
[332254968,1721097040280,-1500.0,0.00014739,2]
[332254969,1721097040289,-1500.0,0.00014743,2]
[332254970,1721097040298,-150.0,0.00014744,2]
[332254971,1721097040309,-150.0,0.00014745,2]
[332254972,1721097040319,-150.0,0.00014745,2]
[332254973,1721097040329,-1500.0,0.00014746,2]
[332254974,1721097040340,-150.0,0.00014747,2]
[332254975,1721097040350,-150.0,0.00014749,2]
[332254976,1721097040359,-150.0,0.0001475,2]
[332254977,1721097040369,-150.0,0.0001475,2]
[332254978,1721097040378,-150.0,0.00014752,2]
[332254979,1721097040388,-150.0,0.00014753,2]
[332254980,1721097040398,-300.0,0.00014755,2]
[332254981,1721097040407,-1500.0,0.00014755,2]
[332254982,1721097040418,-150.0,0.00014759,2]
[332254983,1721097040428,-150.0,0.00014762,2]
[332254984,1721097040438,-1500.0,0.00014762,2]
[332254985,1721097040448,-1500.0,0.00014762,2]
[332254986,1721097040457,-439.94200179,0.00014763,2]
[332254987,1721097040468,-150.0,0.00014764,2]
[332254988,1721097040477,-150.0,0.00014764,2]
[332254989,1721097040487,-150.0,0.00014767,2]
[332254990,1721097040496,-150.0,0.00014768,2]
[332254991,1721097040506,-150.0,0.00014768,2]
[332254992,1721097040515,-150.0,0.00014769,2]
[332254993,1721097040525,-1500.0,0.00014771,2]
[332254994,1721097040534,-150.0,0.00014771,2]
[332254995,1721097040544,-150.0,0.00014772,2]
[332254996,1721097040554,-150.0,0.00014773,2]
[332254997,1721097040563,-150.0,0.00014773,2]
[332254998,1721097040573,-150.0,0.00014774,2]
[332254999,1721097040582,-1500.0,0.00014774,2]
[332255000,1721097040593,-150.0,0.00014774,2]
[332255001,1721097040602,-150.0,0.00014775,2]
[332255002,1721097040611,-150.0,0.00014776,2]
[332255003,1721097040621,-1500.0,0.00014777,2]
[332255004,1721097040631,-150.0,0.00014778,2]
[332255005,1721097040640,-150.0,0.00014779,2]
[332255006,1721097040650,-150.0,0.00014783,2]
[332255007,1721097040661,-1500.0,0.00014785,2]
[332255008,1721097040671,-1500.0,0.00014786,2]
[332255009,1721097040681,-150.0,0.00014788,2]
[332255010,1721097040691,-150.0,0.00014788,2]
[332255011,1721097040701,-300.0,0.00014789,2]
[332255012,1721097040710,-300.0,0.00014791,2]
[332255013,1721097040720,-150.0,0.00014794,2]
[332255014,1721097040730,-1500.0,0.00014794,2]
[332255015,1721097040740,-150.0,0.00014794,2]
[332255016,1721097040749,-150.0,0.00014795,2]
[332255017,1721097040758,-1496.44966939,0.00014795,2]
[332255018,1721097040768,-150.0,0.00014797,2]
[332255019,1721097040778,-150.0,0.00014797,2]
[332255020,1721097040787,-1500.0,0.00014797,2]
[332255021,1721097040797,-150.0,0.00014798,2]
[332255022,1721097040807,-150.0,0.00014799,2]
[332255023,1721097040816,-1500.0,0.00014799,2]
[332255024,1721097040827,-1500.0,0.00014799,2]
[332255025,1721097040836,-192.3693,0.000148,2]
[332255026,1721097040846,-150.0,0.000148,2]
[332255027,1721097040856,-1500.0,0.00014801,2]
[332255028,1721097040865,-1500.0,0.00014802,2]
[332255029,1721097040875,-150.0,0.00014804,2]
[332255030,1721097040885,-1500.0,0.00014805,2]
[332255031,1721097040895,-150.0,0.00014806,2]
[332255032,1721097040904,-150.0,0.00014806,2]
[332255033,1721097040914,-150.0,0.00014807,2]
[332255034,1721097040923,-150.0,0.00014807,2]
[332255035,1721097040933,-150.0,0.00014808,2]
[332255036,1721097040942,-150.0,0.00014809,2]
[332255037,1721097040951,-150.0,0.0001481,2]
[332255038,1721097040961,-1500.0,0.00014811,2]
[332255039,1721097040970,-150.0,0.00014812,2]
[332255040,1721097040979,-151.21015486,0.00014817,2]
[332255041,1721097040989,-150.0,0.00014817,2]
[332255042,1721097040998,-150.0,0.00014819,2]
[332255043,1721097041007,-150.0,0.00014819,2]
[332255044,1721097041017,-300.0,0.00014821,2]
[332255045,1721097041026,-221.59358727,0.00014823,2]
[332255046,1721097041035,-150.0,0.00014825,2]
[332255047,1721097041045,-150.0,0.00014825,2]
[332255048,1721097041054,-1500.0,0.00014826,2]
[332255049,1721097041064,-150.0,0.00014827,2]
[332255050,1721097041074,-150.0,0.00014829,2]
[332255051,1721097041083,-150.0,0.00014831,2]
[332255052,1721097041093,-1500.0,0.00014836,2]
[332255053,1721097041103,-150.0,0.00014839,2]
[332255054,1721097041113,-1500.0,0.00014839,2]
[332255055,1721097041122,-150.0,0.00014839,2]
[332255056,1721097041131,-300.0,0.0001484,2]
[332255057,1721097041141,-150.0,0.00014844,2]
[332255058,1721097041150,-150.0,0.00014844,2]
[332255059,1721097041159,-150.0,0.00014846,2]
[332255060,1721097041169,-150.0,0.00014846,2]
[332255061,1721097041178,-150.0,0.00014846,2]
[332255062,1721097041188,-150.0,0.00014847,2]
[332255063,1721097041197,-1500.0,0.00014849,2]
[332255064,1721097041206,-1500.0,0.0001485,2]
[332255065,1721097041215,-653.30571309,0.00014851,2]
[332255066,1721097041225,-810.24441912,0.00014851,2]
[332255067,1721097041235,-150.0,0.00014852,2]
[332255068,1721097041244,-150.0,0.00014854,2]
[332255069,1721097041254,-150.0,0.00014855,2]
[332255070,1721097041268,-150.0,0.00014859,2]
[332255071,1721097041277,-150.0,0.00014859,2]
[332255072,1721097041287,-150.0,0.0001486,2]
[332255073,1721097041296,-150.0,0.0001486,2]
[332255074,1721097041305,-150.0,0.0001486,2]
[332255075,1721097041315,-1500.0,0.00014863,2]
[332255076,1721097041324,-1500.0,0.00014867,2]
[332255077,1721097041334,-1500.0,0.00014872,2]
[332255078,1721097041344,-1500.0,0.00014874,2]
[332255079,1721097041354,-150.0,0.00014875,2]
[332255080,1721097041363,-150.0,0.00014876,2]
[332255081,1721097041372,-281.1911807,0.00014877,2]
[332255082,1721097041381,-150.0,0.00014879,2]
[332255083,1721097041390,-150.0,0.00014879,2]
[332255084,1721097041399,-500.0,0.0001488,2]
[332255085,1721097041408,-150.0,0.00014882,2]
[332255086,1721097041418,-1500.0,0.00014882,2]
[332255087,1721097041427,-150.0,0.00014883,2]
[332255088,1721097041436,-1500.0,0.00014883,2]
[332255089,1721097041445,-300.86526649,0.00014885,2]
[332255090,1721097041455,-150.0,0.00014887,2]
[332255091,1721097041464,-1500.0,0.00014888,2]
[332255092,1721097041472,-39942.2578,0.0001489,2]
[332255093,1721097041482,-16254.909,0.0001489,2]
[332255094,1721097041491,-150.0,0.00014891,2]
[332255095,1721097041500,-150.0,0.00014891,2]
[332255096,1721097041509,-1500.0,0.00014891,2]
[332255097,1721097041518,-176.73050565,0.00014892,2]
[332255098,1721097041527,-150.0,0.00014894,2]
[332255099,1721097041536,-150.0,0.00014896,2]
[332255100,1721097041545,-150.0,0.00014896,2]
[332255101,1721097041554,-150.0,0.00014897,2]
[332255102,1721097041563,-150.0,0.00014898,2]
[332255103,1721097041572,-593.11822,0.00014899,2]
[332255104,1721097041581,-1500.0,0.00014899,2]
[332255105,1721097041590,-500.0,0.00014899,2]
[332255106,1721097041599,-500.0,0.00014899,2]
[332255107,1721097041609,-500.0,0.00014899,2]
[332255108,1721097041618,-500.0,0.00014899,2]
[332255109,1721097041627,-500.0,0.00014899,2]
[332255110,1721097041637,-2000.0,0.000149,2]
[332255111,1721097041646,-55004.32917772,0.000149,2]
[332255112,1721097041655,-11379.3325,0.000149,2]
[332255113,1721097041665,-1000.0,0.000149,2]
[332255114,1721097041673,-169.24846796,0.000149,2]
[332255115,1721097041683,-172.57673877,0.000149,2]
[332255116,1721097041692,-1398.0,0.000149,2]
[332255117,1721097041702,-506.15821346,0.00014902,2]
[332255118,1721097041711,-150.0,0.00014903,2]
[332255119,1721097041720,-1500.0,0.00014903,2]
[332255120,1721097041730,-150.0,0.00014904,2]
[332255121,1721097041739,-150.0,0.00014904,2]
[332255122,1721097041749,-1500.0,0.00014905,2]
[332255123,1721097041758,-150.0,0.00014907,2]
[332255124,1721097041768,-150.0,0.00014907,2]
[332255125,1721097041777,-1500.0,0.00014912,2]
[332255126,1721097041786,-150.0,0.00014915,2]
[332255127,1721097041795,-150.0,0.00014917,2]
[332255128,1721097041804,-150.0,0.00014917,2]
[332255129,1721097041813,-150.0,0.00014919,2]
[332255130,1721097041822,-1500.0,0.00014919,2]
[332255131,1721097041832,-150.0,0.00014922,2]
[332255132,1721097041841,-150.0,0.00014923,2]
[332255133,1721097041850,-150.0,0.00014925,2]
[332255134,1721097041859,-150.0,0.00014925,2]
[332255135,1721097041869,-150.0,0.00014925,2]
[332255136,1721097041878,-150.0,0.00014925,2]
[332255137,1721097041887,-1496.44966939,0.00014925,2]
[332255138,1721097041896,-150.0,0.0001493,2]
[332255139,1721097041905,-1500.0,0.0001493,2]
[332255140,1721097041914,-150.0,0.00014931,2]
[332255141,1721097041923,-300.0,0.00014931,2]
[332255142,1721097041932,-150.0,0.00014933,2]
[332255143,1721097041940,-1500.0,0.00014939,2]
[332255144,1721097041948,-150.0,0.00014939,2]
[332255145,1721097041955,-150.0,0.00014942,2]
[332255146,1721097041964,-1500.0,0.00014942,2]
[332255147,1721097041972,-150.0,0.00014943,2]
[332255148,1721097041981,-150.0,0.00014943,2]
[332255149,1721097041991,-1507.22836317,0.00014949,2]
[332255150,1721097042000,-1496.44966939,0.0001495,2]
[332255151,1721097042009,-300.0,0.0001495,2]
[332255152,1721097042018,-150.0,0.00014954,2]
[332255153,1721097042028,-500.0,0.00014954,2]
[332255154,1721097042037,-389.5059,0.00014954,2]
[332255155,1721097042046,-500.0,0.00014954,2]
[332255156,1721097042055,-500.0,0.00014954,2]
[332255157,1721097042065,-500.0,0.00014954,2]
[332255158,1721097042074,-150.0,0.00014958,2]
[332255159,1721097042083,-150.0,0.0001496,2]
[332255160,1721097042092,-150.0,0.00014963,2]
[332255161,1721097042100,-150.0,0.00014963,2]
[332255162,1721097042108,-300.0,0.00014966,2]
[332255163,1721097042116,-1500.0,0.00014968,2]
[332255164,1721097042124,-150.0,0.00014971,2]
[332255165,1721097042132,-1500.0,0.00014971,2]
[332255166,1721097042140,-300.0,0.00014972,2]
[332255167,1721097042149,-150.0,0.00014973,2]
[332255168,1721097042157,-150.0,0.00014974,2]
[332255169,1721097042165,-150.0,0.00014975,2]
[332255170,1721097042174,-150.0,0.00014979,2]
[332255171,1721097042183,-1500.0,0.0001498,2]
[332255172,1721097042192,-1500.0,0.0001498,2]
[332255173,1721097042201,-8878.52048297,0.0001498,3]
[332255174,1721097042210,-150.0,0.00014981,2]
[332255175,1721097042219,-150.0,0.00014981,2]
[332255176,1721097042229,-150.0,0.00014981,2]
[332255177,1721097042238,-150.0,0.00014983,2]
[332255178,1721097042247,-1496.44966939,0.00014984,2]
[332255179,1721097042256,-150.0,0.00014984,2]
[332255180,1721097042269,-150.0,0.00014984,2]
[332255181,1721097042278,-150.0,0.00014986,2]
[332255182,1721097042287,-500.0,0.00014989,2]
[332255183,1721097042296,-500.0,0.00014989,2]
[332255184,1721097042307,-375.361919,0.00014989,2]
[332255185,1721097042317,-500.0,0.00014989,2]
[332255186,1721097042326,-8878.52048297,0.0001499,3]
[332255187,1721097042337,-116569.55146778,0.0001499,3]
[332255188,1721097042534,-1807.94453318,0.0001499,3]
[332255189,1721097042611,-961.05416189,0.00013754,2]
[332255190,1721097042620,-381.10522475,0.00014203,2]
[332255191,1721097042630,-14531.00561023,0.0001499,3]
[332255194,1721097043452,-292.73680835,0.00012302,2]
[332255196,1721097043463,-311.6,0.00012302,2]
[332255199,1721097043558,-185.43655388,0.00012302,2]
[332255200,1721097043567,-86.27630832,0.00013543,2]
[332255201,1721097043670,-460.99495927,0.00013543,2]
[332255203,1721097043679,-227.38500209,0.00013889,2]
[332255205,1721097043688,-25908.56618123,0.0001499,3]
[332255215,1721097043786,-551.65203341,0.0001499,3]
[332255392,1721097046413,-13840.50615542,0.0001499,3]
[332255393,1721097046427,-59077.59912517,0.0001499,3]
[332255394,1721097046439,-9334.13988272,0.0001499,3]
[332255395,1721097046451,-42491.69046586,0.0001499,3]
[332255396,1721097046461,-150.0,0.00014992,2]
[332255397,1721097046470,-1500.0,0.00014992,2]
[332255398,1721097046480,-1247.78250732,0.00014999,2]
[332255399,1721097046490,-580.4005845,0.00014999,2]
[332255400,1721097046499,-1665.97332232,0.00014999,2]
[332255401,1721097046511,-1000.18527722,0.00014999,2]
[332255402,1721097046522,-529.998059,0.00014999,2]
[332255403,1721097046538,-856.23302396,0.00014999,2]
[332255404,1721097046547,-3614.58550684,0.00014999,2]
[332255405,1721097046558,-969.19106716,0.00014999,2]
[332255406,1721097046568,-1448.106919,0.00014999,2]
[332255407,1721097046577,-3233.30201384,0.00015,2]
[332255408,1721097046588,-5891.39520654,0.00015,2]
[332255409,1721097046599,-4107.44016929,0.00015,2]
[332255410,1721097046669,-462.38270218,0.00015,2]
[332255411,1721097046680,-716.04391699,0.00015,2]
[332255412,1721097046692,-2573.29347524,0.00015,2]
[332255413,1721097046701,-95043.33661903,0.00015,2]
[332255414,1721097046713,-2126.46866877,0.00015,2]
[332255419,1721097412358,-150.0,0.00012,2]
[332255420,1721097413209,-150.0,0.00012,2]
[332255421,1721097414047,-150.0,0.00012,2]
[332255422,1721097414724,-150.0,0.00012,2]